[Event "*** Titled Tuesday 3|2 Blitz (Late)"]
[Site "Chess.com"]
[Date "2016.11.01"]
[Round "3"]
[White "Abrito99"]
[Black "brightthunder"]
[Result "1-0"]
[WhiteElo "2368"]
[BlackElo "2543"]
[TimeControl "180+2"]
[EndTime "17:36:29 PDT"]
[Termination "Abrito99 won by resignation"]

1. e4 {[%clk 0:03:01.5]} 1... c5 {[%clk 0:02:59.7]} 2. d4 {[%clk 0:03:00]} 2...
cxd4 {[%clk 0:02:59.9]} 3. c3 {[%clk 0:03:01.6]} 3... dxc3 {[%clk 0:03:01.1]} 4.
Nxc3 {[%clk 0:03:03.2]} 4... Nc6 {[%clk 0:03:02.7]} 5. Nf3 {[%clk 0:03:04.6]}
5... d6 {[%clk 0:03:04.6]} 6. Bc4 {[%clk 0:03:05.4]} 6... a6 {[%clk 0:03:06.2]}
7. O-O {[%clk 0:03:05.8]} 7... Nf6 {[%clk 0:03:07.7]} 8. Bf4 {[%clk 0:02:58.1]}
8... Bg4 {[%clk 0:02:54.1]} 9. h3 {[%clk 0:02:56.6]} 9... Bxf3 {[%clk
0:02:53.8]} 10. Qxf3 {[%clk 0:02:57.6]} 10... e6 {[%clk 0:02:52.3]} 11. Rfd1
{[%clk 0:02:36.8]} 11... Qb8 {[%clk 0:02:51.8]} 12. Be2 {[%clk 0:02:36.9]} 12...
Be7 {[%clk 0:02:45.3]} 13. Qg3 {[%clk 0:02:37]} 13... O-O {[%clk 0:02:45.8]} 14.
Rxd6 {[%clk 0:02:32.3]} 14... Bxd6 {[%clk 0:02:45.3]} 15. Bxd6 {[%clk
0:02:32.8]} 15... Qa7 {[%clk 0:02:46.5]} 16. Bxf8 {[%clk 0:02:01.8]} 16... Kxf8
{[%clk 0:02:48.4]} 17. Rd1 {[%clk 0:01:34.6]} 17... Qb6 {[%clk 0:02:47.9]} 18.
e5 {[%clk 0:01:26.7]} 18... Ng8 {[%clk 0:02:35.2]} 19. b3 {[%clk 0:01:00.7]}
19... Rd8 {[%clk 0:02:28.9]} 20. Rxd8+ {[%clk 0:00:55.2]} 20... Qxd8 {[%clk
0:02:30.8]} 21. Bf3 {[%clk 0:00:48.4]} 21... Nge7 {[%clk 0:02:24.4]} 22. Qh4
{[%clk 0:00:46]} 22... Qd2 {[%clk 0:01:50.1]} 23. Ne4 {[%clk 0:00:27.3]} 23...
Qe1+ {[%clk 0:01:50.4]} 24. Kh2 {[%clk 0:00:26.8]} 24... h6 {[%clk 0:01:52.1]}
25. Qg3 {[%clk 0:00:23.1]} 25... Qa1 {[%clk 0:01:29.4]} 26. Nc5 {[%clk
0:00:21.6]} 26... Nf5 {[%clk 0:00:57.1]} 27. Qf4 {[%clk 0:00:20.1]} 27... Qxe5
{[%clk 0:00:56.9]} 28. Nd7+ {[%clk 0:00:20.3]} 1-0

[Event "*** Titled Tuesday 3|2 Blitz (Late)"]
[Site "Chess.com"]
[Date "2016.11.01"]
[Round "3"]
[White "theprosecution1"]
[Black "joppie2"]
[Result "1-0"]
[WhiteElo "2507"]
[BlackElo "2527"]
[TimeControl "180+2"]
[EndTime "17:36:38 PDT"]
[Termination "theprosecution1 won by resignation"]

1. e4 {[%clk 0:03:02]} 1... c6 {[%clk 0:02:59.5]} 2. d4 {[%clk 0:03:02.6]} 2...
d5 {[%clk 0:03:01.2]} 3. e5 {[%clk 0:03:03.8]} 3... Bf5 {[%clk 0:03:02.8]} 4. h4
{[%clk 0:03:05.2]} 4... h6 {[%clk 0:03:00.5]} 5. g4 {[%clk 0:03:05.6]} 5... Bd7
{[%clk 0:03:00.3]} 6. h5 {[%clk 0:03:05.8]} 6... Qc7 {[%clk 0:02:57.5]} 7. f4
{[%clk 0:03:01.8]} 7... c5 {[%clk 0:02:57]} 8. c3 {[%clk 0:03:01]} 8... e6
{[%clk 0:02:54.8]} 9. Nf3 {[%clk 0:02:55]} 9... a6 {[%clk 0:02:52.3]} 10. Be3
{[%clk 0:02:52.3]} 10... Bb5 {[%clk 0:02:53.1]} 11. Kf2 {[%clk 0:02:51.7]} 11...
Bxf1 {[%clk 0:02:53.5]} 12. Rxf1 {[%clk 0:02:53.6]} 12... Nd7 {[%clk 0:02:51.1]}
13. Kg3 {[%clk 0:02:50.1]} 13... Ne7 {[%clk 0:02:52.1]} 14. dxc5 {[%clk
0:02:26]} 14... Nxc5 {[%clk 0:02:52.4]} 15. Nbd2 {[%clk 0:02:27.5]} 15... Nc6
{[%clk 0:02:52.1]} 16. Kg2 {[%clk 0:02:26.6]} 16... Be7 {[%clk 0:02:45.9]} 17.
Qc2 {[%clk 0:02:23.5]} 17... b5 {[%clk 0:02:30.1]} 18. Rae1 {[%clk 0:02:17.7]}
18... Qb7 {[%clk 0:02:30.9]} 19. Kh2 {[%clk 0:02:16.4]} 19... Rc8 {[%clk
0:02:31.8]} 20. f5 {[%clk 0:02:14.7]} 20... Ne4 {[%clk 0:02:23.8]} 21. Nxe4
{[%clk 0:02:11.5]} 21... dxe4 {[%clk 0:01:59.1]} 22. Qxe4 {[%clk 0:02:13.4]}
22... Na5 {[%clk 0:02:00.2]} 23. Qxb7 {[%clk 0:02:14]} 23... Nxb7 {[%clk
0:02:02.1]} 24. Nd4 {[%clk 0:02:15.5]} 24... Nc5 {[%clk 0:02:02.9]} 25. Re2
{[%clk 0:02:08.7]} 25... O-O {[%clk 0:01:53.1]} 26. f6 {[%clk 0:02:09.1]} 26...
Bd8 {[%clk 0:01:46.7]} 27. g5 {[%clk 0:02:05.9]} 27... hxg5 {[%clk 0:01:43.3]}
28. Bxg5 {[%clk 0:02:07.8]} 28... gxf6 {[%clk 0:01:44.3]} 29. Bxf6 {[%clk
0:02:09.1]} 29... Bxf6 {[%clk 0:01:44.2]} 30. Rxf6 {[%clk 0:02:07.7]} 30... Rc7
{[%clk 0:01:44.7]} 31. Nf3 {[%clk 0:01:58.4]} 31... Kh8 {[%clk 0:01:20.2]} 32.
Rg2 {[%clk 0:01:55.3]} 32... Kh7 {[%clk 0:01:01.6]} 33. Ng5+ {[%clk 0:01:55.4]}
33... Kh8 {[%clk 0:01:03.1]} 34. Rh6+ {[%clk 0:01:27.8]} 34... Kg7 {[%clk
0:01:03.4]} 35. Rh7+ {[%clk 0:01:29.3]} 35... Kg8 {[%clk 0:01:03.3]} 36. h6
{[%clk 0:01:30.8]} 36... Rd7 {[%clk 0:00:30.8]} 37. Nxf7+ {[%clk 0:01:18.1]} 1-0

[Event "*** Titled Tuesday 3|2 Blitz (Late)"]
[Site "Chess.com"]
[Date "2016.11.01"]
[Round "3"]
[White "wonderfultime"]
[Black "TheSovietChess"]
[Result "0-1"]
[WhiteElo "2702"]
[BlackElo "2534"]
[TimeControl "180+2"]
[EndTime "17:36:47 PDT"]
[Termination "TheSovietChess won by resignation"]

1. d4 {[%clk 0:03:01.9]} 1... Nf6 {[%clk 0:03:00.1]} 2. c4 {[%clk 0:03:02.7]}
2... g6 {[%clk 0:03:02]} 3. Nc3 {[%clk 0:03:03.3]} 3... d5 {[%clk 0:03:03.6]} 4.
cxd5 {[%clk 0:03:02.8]} 4... Nxd5 {[%clk 0:03:04.4]} 5. e4 {[%clk 0:03:04.4]}
5... Nxc3 {[%clk 0:03:05.1]} 6. bxc3 {[%clk 0:03:06.3]} 6... Bg7 {[%clk
0:03:06.8]} 7. Qa4+ {[%clk 0:03:07.4]} 7... Nd7 {[%clk 0:03:06.8]} 8. Nf3 {[%clk
0:03:08.1]} 8... O-O {[%clk 0:03:07.2]} 9. Be2 {[%clk 0:03:09.4]} 9... c5 {[%clk
0:03:08]} 10. O-O {[%clk 0:03:10.4]} 10... Nb6 {[%clk 0:03:08.6]} 11. Qa3 {[%clk
0:03:06.5]} 11... cxd4 {[%clk 0:03:08.9]} 12. cxd4 {[%clk 0:03:08.4]} 12... Bg4
{[%clk 0:03:09]} 13. Bg5 {[%clk 0:03:08.7]} 13... Bxf3 {[%clk 0:03:09.6]} 14.
Bxf3 {[%clk 0:03:10.6]} 14... Qxd4 {[%clk 0:03:09.6]} 15. Qxe7 {[%clk
0:03:10.3]} 15... Qe5 {[%clk 0:03:10.1]} 16. Rac1 {[%clk 0:02:57.6]} 16... Qxe7
{[%clk 0:03:10.8]} 17. Bxe7 {[%clk 0:02:56.9]} 17... Rfc8 {[%clk 0:03:11.3]} 18.
Bg4 {[%clk 0:02:51.6]} 18... Re8 {[%clk 0:03:11.6]} 19. Rc7 {[%clk 0:02:43.4]}
19... Rab8 {[%clk 0:03:11.5]} 20. Bc5 {[%clk 0:01:44.8]} 20... h5 {[%clk
0:03:11]} 21. Bd1 {[%clk 0:01:37.8]} 21... Be5 {[%clk 0:03:11.4]} 22. Bxb6
{[%clk 0:01:37.5]} 22... axb6 {[%clk 0:03:12]} 23. Rc4 {[%clk 0:01:33.5]} 23...
Rbd8 {[%clk 0:03:12.2]} 24. Rb4 {[%clk 0:01:31.1]} 24... Bd4 {[%clk 0:03:12.8]}
25. Bc2 {[%clk 0:01:24.2]} 25... Bc5 {[%clk 0:03:13.4]} 26. Rc4 {[%clk 0:01:21]}
26... Rd2 {[%clk 0:03:13.6]} 27. g3 {[%clk 0:01:18.8]} 27... Re2 {[%clk
0:03:14.3]} 28. Kg2 {[%clk 0:01:15.6]} 28... Rd8 {[%clk 0:03:14.7]} 29. Bd1
{[%clk 0:00:35.9]} 29... Rxa2 {[%clk 0:02:41.4]} 30. e5 {[%clk 0:00:36.8]} 30...
Rdd2 {[%clk 0:02:41.4]} 31. Rf4 {[%clk 0:00:33.2]} 31... Rab2 {[%clk 0:02:41.8]}
32. h4 {[%clk 0:00:22.9]} 32... Bd4 {[%clk 0:02:42.5]} 33. e6 {[%clk 0:00:17.5]}
33... fxe6 {[%clk 0:02:43.3]} 34. g4 {[%clk 0:00:14.9]} 34... e5 {[%clk
0:02:13.3]} 35. Rf6 {[%clk 0:00:15.4]} 35... Kg7 {[%clk 0:02:13.9]} 36. Rd6
{[%clk 0:00:04.5]} 36... hxg4 {[%clk 0:02:14.1]} 37. Bxg4 {[%clk 0:00:04.7]}
37... e4 {[%clk 0:02:14.9]} 38. Rd7+ {[%clk 0:00:05.5]} 38... Kh6 {[%clk
0:02:15.7]} 39. Kh3 {[%clk 0:00:07.4]} 39... Bxf2 {[%clk 0:02:15.8]} 40. Rxb7
{[%clk 0:00:06]} 40... Rd3+ {[%clk 0:02:16.3]} 41. Kh2 {[%clk 0:00:06.6]} 41...
Bd4+ {[%clk 0:02:16.6]} 42. Kh1 {[%clk 0:00:06.7]} 42... Rdd2 {[%clk 0:02:07.2]}
0-1

[Event "*** Titled Tuesday 3|2 Blitz (Late)"]
[Site "Chess.com"]
[Date "2016.11.01"]
[Round "3"]
[White "Nyzhnyk_Illia"]
[Black "Alexander_Moskalenko"]
[Result "0-1"]
[WhiteElo "2547"]
[BlackElo "2663"]
[TimeControl "180+2"]
[EndTime "17:37:05 PDT"]
[Termination "Alexander_Moskalenko won by resignation"]

1. d4 {[%clk 0:03:01]} 1... d5 {[%clk 0:03:02]} 2. Nf3 {[%clk 0:03:01.3]} 2...
Bf5 {[%clk 0:03:02]} 3. c4 {[%clk 0:02:59.7]} 3... e6 {[%clk 0:03:03.5]} 4. Qb3
{[%clk 0:03:00.4]} 4... Nc6 {[%clk 0:03:03.5]} 5. e3 {[%clk 0:02:42.2]} 5... Nb4
{[%clk 0:02:59]} 6. Na3 {[%clk 0:02:43.3]} 6... Nf6 {[%clk 0:02:53.1]} 7. Bd2
{[%clk 0:02:43.5]} 7... a5 {[%clk 0:02:53.1]} 8. c5 {[%clk 0:02:44.3]} 8... c6
{[%clk 0:02:45.7]} 9. Ne5 {[%clk 0:02:36.5]} 9... Be7 {[%clk 0:02:38.5]} 10.
Bxb4 {[%clk 0:02:30.1]} 10... axb4 {[%clk 0:02:39.4]} 11. Qxb4 {[%clk
0:02:31.9]} 11... O-O {[%clk 0:02:40.3]} 12. Be2 {[%clk 0:02:33.6]} 12... Nd7
{[%clk 0:02:27.6]} 13. Nxd7 {[%clk 0:02:17.3]} 13... Qxd7 {[%clk 0:02:29.5]} 14.
Qc3 {[%clk 0:02:18.7]} 14... Rfb8 {[%clk 0:02:29.9]} 15. O-O {[%clk 0:02:16.4]}
15... b6 {[%clk 0:02:27.9]} 16. cxb6 {[%clk 0:02:18]} 16... Rxb6 {[%clk
0:02:28.2]} 17. Nc2 {[%clk 0:02:19.8]} 17... Rc8 {[%clk 0:02:23.9]} 18. a4
{[%clk 0:01:52.6]} 18... c5 {[%clk 0:02:20.5]} 19. Bb5 {[%clk 0:01:52.7]} 19...
Rxb5 {[%clk 0:02:07.2]} 20. axb5 {[%clk 0:01:53.2]} 20... cxd4 {[%clk
0:02:09.1]} 21. Ra7 {[%clk 0:01:31.9]} 21... Qe8 {[%clk 0:01:45]} 22. Rxe7
{[%clk 0:01:24.7]} 22... dxc3 {[%clk 0:01:38.4]} 23. Rxe8+ {[%clk 0:01:24.8]}
23... Rxe8 {[%clk 0:01:40.3]} 24. Na3 {[%clk 0:00:37.9]} 24... cxb2 {[%clk
0:01:40.7]} 25. f3 {[%clk 0:00:39.6]} 25... Rc8 {[%clk 0:01:39.9]} 26. Kf2
{[%clk 0:00:38.1]} 26... Rc1 {[%clk 0:00:43.9]} 27. b6 {[%clk 0:00:28.8]} 27...
Bd3 {[%clk 0:00:44.6]} 28. Re1 {[%clk 0:00:13.4]} 28... Ba6 {[%clk 0:00:39]} 29.
Nb1 {[%clk 0:00:08.3]} 29... Kf8 {[%clk 0:00:35.5]} 30. f4 {[%clk 0:00:07.3]}
30... Ke7 {[%clk 0:00:36.6]} 0-1

[Event "*** Titled Tuesday 3|2 Blitz (Late)"]
[Site "Chess.com"]
[Date "2016.11.01"]
[Round "3"]
[White "g2_g3"]
[Black "chito89"]
[Result "0-1"]
[WhiteElo "1848"]
[BlackElo "2482"]
[TimeControl "180+2"]
[EndTime "17:37:12 PDT"]
[Termination "chito89 won by checkmate"]

1. d4 {[%clk 0:03:01.9]} 1... Nf6 {[%clk 0:02:59.7]} 2. Nf3 {[%clk 0:03:01]}
2... e6 {[%clk 0:03:00.5]} 3. e3 {[%clk 0:03:01.6]} 3... b6 {[%clk 0:02:59.4]}
4. Bd3 {[%clk 0:03:01.5]} 4... Bb7 {[%clk 0:03:00.7]} 5. Nbd2 {[%clk 0:03:02.5]}
5... g6 {[%clk 0:02:54.1]} 6. e4 {[%clk 0:02:58.9]} 6... d6 {[%clk 0:02:54]} 7.
O-O {[%clk 0:02:58.7]} 7... Bg7 {[%clk 0:02:49.9]} 8. Qe2 {[%clk 0:02:58.4]}
8... O-O {[%clk 0:02:48.6]} 9. c3 {[%clk 0:02:53.6]} 9... c5 {[%clk 0:02:46.6]}
10. e5 {[%clk 0:02:44.7]} 10... dxe5 {[%clk 0:02:39.6]} 11. dxe5 {[%clk
0:02:44.9]} 11... Nd5 {[%clk 0:02:33.1]} 12. Ne4 {[%clk 0:02:42.4]} 12... Nd7
{[%clk 0:02:32.7]} 13. Bg5 {[%clk 0:02:28.2]} 13... Qc7 {[%clk 0:02:32.3]} 14.
c4 {[%clk 0:02:21.1]} 14... Nb4 {[%clk 0:02:30]} 15. Nf6+ {[%clk 0:02:19.9]}
15... Bxf6 {[%clk 0:02:17.3]} 16. exf6 {[%clk 0:02:19]} 16... Rfd8 {[%clk
0:01:49]} 17. Be4 {[%clk 0:02:16.4]} 17... Nc6 {[%clk 0:01:19.2]} 18. Qe3 {[%clk
0:02:03.8]} 18... Nd4 {[%clk 0:01:13.2]} 19. Bxb7 {[%clk 0:01:42]} 19... Qxb7
{[%clk 0:01:14.6]} 20. Nxd4 {[%clk 0:01:39.1]} 20... cxd4 {[%clk 0:01:15.9]} 21.
Qxd4 {[%clk 0:01:22.2]} 21... Nc5 {[%clk 0:01:16.3]} 22. Qh4 {[%clk 0:01:20.8]}
22... h5 {[%clk 0:01:01.6]} 23. f3 {[%clk 0:01:00.8]} 23... e5 {[%clk
0:00:54.2]} 24. Rad1 {[%clk 0:00:54.2]} 24... Qc7 {[%clk 0:00:46.6]} 25. Be3
{[%clk 0:00:43.7]} 25... Ne6 {[%clk 0:00:43.2]} 26. b3 {[%clk 0:00:30.3]} 26...
Rxd1 {[%clk 0:00:43.5]} 27. Rxd1 {[%clk 0:00:30.6]} 27... Rd8 {[%clk 0:00:45.1]}
28. Rd5 {[%clk 0:00:27.5]} 28... Nf8 {[%clk 0:00:30.3]} 29. Qg5 {[%clk
0:00:23.7]} 29... Rxd5 {[%clk 0:00:26.4]} 30. cxd5 {[%clk 0:00:20.7]} 30... Qc3
{[%clk 0:00:26.9]} 31. Qh6 {[%clk 0:00:14.8]} 31... Qe1# {[%clk 0:00:27.3]} 0-1

[Event "*** Titled Tuesday 3|2 Blitz (Late)"]
[Site "Chess.com"]
[Date "2016.11.01"]
[Round "3"]
[White "uzbektiger95"]
[Black "dretch"]
[Result "1-0"]
[WhiteElo "2605"]
[BlackElo "2625"]
[TimeControl "180+2"]
[EndTime "17:37:17 PDT"]
[Termination "uzbektiger95 won by checkmate"]

1. c4 {[%clk 0:03:02]} 1... c6 {[%clk 0:02:59.2]} 2. Nc3 {[%clk 0:03:03.9]} 2...
d5 {[%clk 0:03:00.3]} 3. d4 {[%clk 0:03:05.8]} 3... dxc4 {[%clk 0:03:01.9]} 4.
e3 {[%clk 0:03:06.9]} 4... b5 {[%clk 0:03:02.7]} 5. a4 {[%clk 0:03:08.6]} 5...
b4 {[%clk 0:03:03.9]} 6. Ne4 {[%clk 0:03:10.3]} 6... Qd5 {[%clk 0:03:04.7]} 7.
Nd2 {[%clk 0:03:12]} 7... c3 {[%clk 0:03:05.5]} 8. bxc3 {[%clk 0:03:13.9]} 8...
bxc3 {[%clk 0:03:07]} 9. Nb1 {[%clk 0:03:15.6]} 9... Qa5 {[%clk 0:03:08.3]} 10.
Qc2 {[%clk 0:03:16.5]} 10... Na6 {[%clk 0:03:02.4]} 11. Ba3 {[%clk 0:03:17.8]}
11... Nb4 {[%clk 0:02:48.8]} 12. Bxb4 {[%clk 0:03:19]} 12... Qxb4 {[%clk
0:02:50.7]} 13. Nxc3 {[%clk 0:03:17.1]} 13... Bf5 {[%clk 0:02:46.8]} 14. Bd3
{[%clk 0:03:16.3]} 14... Bxd3 {[%clk 0:02:37.6]} 15. Qxd3 {[%clk 0:03:18.2]}
15... Nf6 {[%clk 0:02:35.9]} 16. Ne2 {[%clk 0:03:17.7]} 16... e6 {[%clk
0:02:36.2]} 17. O-O {[%clk 0:03:18.7]} 17... Be7 {[%clk 0:02:36.1]} 18. a5
{[%clk 0:03:17.5]} 18... O-O {[%clk 0:02:35.1]} 19. Rfb1 {[%clk 0:03:15.4]}
19... Qd6 {[%clk 0:02:35.5]} 20. Qc4 {[%clk 0:03:16]} 20... Rfb8 {[%clk
0:02:32]} 21. Nf4 {[%clk 0:02:57.1]} 21... Nd5 {[%clk 0:02:19.7]} 22. Nd3 {[%clk
0:02:54.8]} 22... Nxc3 {[%clk 0:02:15.6]} 23. Qxc3 {[%clk 0:02:55.7]} 23... Rb5
{[%clk 0:02:17.3]} 24. Rc1 {[%clk 0:02:47.2]} 24... Rc8 {[%clk 0:02:18.3]} 25.
Qc4 {[%clk 0:02:44.3]} 25... Qb8 {[%clk 0:01:34.3]} 26. g3 {[%clk 0:02:44.6]}
26... Bd6 {[%clk 0:01:21.8]} 27. e4 {[%clk 0:02:45.8]} 27... g6 {[%clk
0:01:21.3]} 28. Kg2 {[%clk 0:02:43.9]} 28... Qb7 {[%clk 0:01:15.9]} 29. Rc2
{[%clk 0:02:40.9]} 29... a6 {[%clk 0:01:11.2]} 30. Raa2 {[%clk 0:02:39.6]} 30...
Qc7 {[%clk 0:00:46.7]} 31. h4 {[%clk 0:02:37.9]} 31... Rxa5 {[%clk 0:00:41.8]}
32. Rxa5 {[%clk 0:02:35.9]} 32... Qxa5 {[%clk 0:00:42.9]} 33. Rb2 {[%clk
0:02:37.8]} 33... Kg7 {[%clk 0:00:28.7]} 34. Rb7 {[%clk 0:02:35.3]} 34... Rc7
{[%clk 0:00:28.3]} 35. Rb1 {[%clk 0:02:31.7]} 35... Qd2 {[%clk 0:00:24.6]} 36.
Rb2 {[%clk 0:02:30.8]} 36... Qa5 {[%clk 0:00:18.6]} 37. Ra2 {[%clk 0:02:27.9]}
37... Qb5 {[%clk 0:00:19.4]} 38. Qc3 {[%clk 0:02:25.9]} 38... Kg8 {[%clk
0:00:19.7]} 39. Rb2 {[%clk 0:02:23.7]} 39... Qh5 {[%clk 0:00:15.3]} 40. Rb8+
{[%clk 0:02:18]} 40... Kg7 {[%clk 0:00:16]} 41. e5 {[%clk 0:02:19.6]} 41... Be7
{[%clk 0:00:14.7]} 42. Nc5 {[%clk 0:02:17]} 42... Qf5 {[%clk 0:00:13.2]} 43. Qa5
{[%clk 0:02:13.9]} 43... Bxc5 {[%clk 0:00:11.7]} 44. Qxc5 {[%clk 0:02:10.5]}
44... Kh6 {[%clk 0:00:04.7]} 45. Qf8+ {[%clk 0:02:10.2]} 45... Kh5 {[%clk
0:00:06.2]} 46. Qg7 {[%clk 0:02:08.7]} 46... Qe4+ {[%clk 0:00:05.8]} 47. Kh2
{[%clk 0:02:07.6]} 47... Kg4 {[%clk 0:00:06.2]} 48. Rb3 {[%clk 0:02:05.9]} 48...
Qc2 {[%clk 0:00:04]} 49. Qf6 {[%clk 0:02:03]} 49... h6 {[%clk 0:00:03.6]} 50.
Qf4+ {[%clk 0:01:59.9]} 50... Kh5 {[%clk 0:00:05]} 51. g4+ {[%clk 0:02:01.5]}
51... Kxh4 {[%clk 0:00:06.4]} 52. Rh3# {[%clk 0:02:02.1]} 1-0

[Event "*** Titled Tuesday 3|2 Blitz (Late)"]
[Site "Chess.com"]
[Date "2016.11.01"]
[Round "3"]
[White "Gabrielian_Artur"]
[Black "micfel"]
[Result "0-1"]
[WhiteElo "2545"]
[BlackElo "2285"]
[TimeControl "180+2"]
[EndTime "17:37:27 PDT"]
[Termination "micfel won by resignation"]

1. e4 {[%clk 0:03:00.5]} 1... e5 {[%clk 0:03:00.2]} 2. Nf3 {[%clk 0:02:57.3]}
2... Nf6 {[%clk 0:03:00.7]} 3. Nxe5 {[%clk 0:02:56.7]} 3... d6 {[%clk
0:03:01.3]} 4. Nf3 {[%clk 0:02:57.9]} 4... Nxe4 {[%clk 0:03:02.1]} 5. c4 {[%clk
0:02:59.2]} 5... Be7 {[%clk 0:02:59.3]} 6. d4 {[%clk 0:03:00]} 6... O-O {[%clk
0:02:59.5]} 7. Bd3 {[%clk 0:03:00.6]} 7... Nf6 {[%clk 0:02:59.7]} 8. h3 {[%clk
0:02:59.7]} 8... c5 {[%clk 0:03:00]} 9. d5 {[%clk 0:02:57.3]} 9... Nbd7 {[%clk
0:03:00.4]} 10. O-O {[%clk 0:02:57.8]} 10... Re8 {[%clk 0:02:58]} 11. Nc3 {[%clk
0:02:58.5]} 11... Nf8 {[%clk 0:02:58.2]} 12. Re1 {[%clk 0:02:58.5]} 12... Ng6
{[%clk 0:02:58.6]} 13. Bc2 {[%clk 0:02:53.6]} 13... Bd7 {[%clk 0:02:55.6]} 14.
b3 {[%clk 0:02:54]} 14... a6 {[%clk 0:02:55.1]} 15. a4 {[%clk 0:02:54.4]} 15...
b6 {[%clk 0:02:55.3]} 16. Bb2 {[%clk 0:02:55.1]} 16... Rb8 {[%clk 0:02:51.7]}
17. Qd3 {[%clk 0:02:51.5]} 17... Nf4 {[%clk 0:02:49.3]} 18. Qd2 {[%clk 0:02:49]}
18... Ng6 {[%clk 0:02:47.8]} 19. Bd3 {[%clk 0:02:46.9]} 19... Qc7 {[%clk
0:02:42.9]} 20. Kh2 {[%clk 0:02:47.2]} 20... Bf8 {[%clk 0:02:37.7]} 21. Ne2
{[%clk 0:02:42.4]} 21... b5 {[%clk 0:02:35.9]} 22. Bxf6 {[%clk 0:02:42.4]} 22...
gxf6 {[%clk 0:02:35.1]} 23. axb5 {[%clk 0:02:43.7]} 23... axb5 {[%clk
0:02:35.1]} 24. Nc3 {[%clk 0:02:42.6]} 24... bxc4 {[%clk 0:02:32.9]} 25. bxc4
{[%clk 0:02:43.8]} 25... Bg7 {[%clk 0:02:29.2]} 26. Rxe8+ {[%clk 0:02:38.3]}
26... Rxe8 {[%clk 0:02:28.9]} 27. Re1 {[%clk 0:02:36.9]} 27... Rxe1 {[%clk
0:02:23.9]} 28. Qxe1 {[%clk 0:02:37]} 28... f5 {[%clk 0:02:22.3]} 29. Nb5 {[%clk
0:02:25.7]} 29... Qb8 {[%clk 0:02:10.7]} 30. Qb1 {[%clk 0:02:22.3]} 30... Ne5
{[%clk 0:01:58.3]} 31. Nxe5 {[%clk 0:02:21]} 31... dxe5 {[%clk 0:01:51.8]} 32.
Kg1 {[%clk 0:02:04.3]} 32... e4 {[%clk 0:01:51.4]} 33. Be2 {[%clk 0:02:04.1]}
33... Bd4 {[%clk 0:01:47.4]} 34. Qb3 {[%clk 0:02:00.8]} 34... Bxb5 {[%clk
0:01:39.8]} 35. cxb5 {[%clk 0:01:59.9]} 35... Qf4 {[%clk 0:01:38.9]} 36. Qd1
{[%clk 0:01:44.3]} 36... Qxf2+ {[%clk 0:01:37.1]} 37. Kh1 {[%clk 0:01:45.2]}
37... Be5 {[%clk 0:01:33.8]} 38. b6 {[%clk 0:01:39.7]} 38... Qg3 {[%clk
0:01:32.9]} 39. Qg1 {[%clk 0:01:40.2]} 39... Kf8 {[%clk 0:01:27.3]} 40. Qxc5+
{[%clk 0:01:38.3]} 40... Bd6 {[%clk 0:01:27.7]} 41. Qg1 {[%clk 0:01:37.5]} 41...
f4 {[%clk 0:01:25.9]} 42. Bg4 {[%clk 0:01:23.4]} 42... h5 {[%clk 0:01:16.3]} 43.
Bc8 {[%clk 0:01:02]} 43... e3 {[%clk 0:01:05]} 44. Ba6 {[%clk 0:00:55.9]} 44...
f3 {[%clk 0:01:01.3]} 0-1